bitfinex-derivatives/quotes_SOLF0:USTF0_20250712
["timestamp","ask_amount","ask_price","bid_price","bid_amount"]
[1752312667362,3.27,162.39,162.38,9.4862]
[1752312669768,3.27,162.39,162.38,6.1562]
[1752312669962,3.27,162.39,162.38,9.4862]
[1752312679169,3.27,162.39,162.38,10.97834579]
[1752312682057,3.27,162.39,162.38,6.1562]
[1752312687671,3.27,162.39,162.38,9.5262]
[1752312691762,3.27,162.39,162.38,11.02056627]
[1752312700774,0.04559985,162.4,162.39,6.1559]
[1752312701079,0.04559985,162.4,162.39,11.01992669]
[1752312704281,0.04559985,162.4,162.39,17.91626875]
[1752312704481,0.04559985,162.4,162.39,17.93180281]
[1752312704681,0.04559985,162.4,162.39,11.01992669]
[1752312705183,0.04559985,162.4,162.39,17.92929791]
[1752312706275,3.51559985,162.4,162.39,17.92929791]
[1752312706477,3.51559985,162.4,162.39,11.01992669]
[1752312708983,0.04559985,162.4,162.39,11.01992669]
[1752312709783,0.04559985,162.4,162.39,17.92929791]
[1752312711783,0.04559985,162.4,162.39,11.01992669]
[1752312712280,3.51559985,162.4,162.39,1.49402669]
[1752312712481,3.51559985,162.4,162.38,1.49402669]
[1752312712985,3.47,162.39,162.38,1.49402669]
[1752312713586,3.47,162.39,162.37,5.17735639]
[1752312713781,3.47,162.39,162.36,6.67138308]
[1752312713982,3.47,162.39,162.37,1.49402669]
[1752312714884,3.47,162.38,162.37,8.59735639]
[1752312715282,3.47,162.38,162.37,14.75395639]
[1752312715992,3.47,162.38,162.37,16.24798308]
[1752312716491,3.47,162.38,162.37,11.07062669]
[1752312716786,3.47,162.38,162.37,4.91402669]
[1752312717184,3.47,162.38,162.37,1.49402669]
[1752312718192,6.1563,162.38,162.36,10.09138308]
[1752312718491,3.47,162.37,162.36,10.09138308]
[1752312718694,3.47,162.37,162.36,16.24838308]
[1752312718893,3.47,162.37,162.36,14.75435639]
[1752312719684,3.47,162.37,162.36,5.17735639]
[1752312720293,3.47,162.37,162.36,8.59735639]
[1752312721094,3.47,162.37,162.36,14.75435639]
[1752312722597,3.47,162.37,162.36,8.59735639]
[1752312722786,3.47,162.37,162.36,3.42]
[1752312722993,3.47,162.37,162.36,8.59735639]
[1752312723188,3.47,162.37,162.36,14.75435639]
[1752312725903,3.47,162.39,162.38,3.42]
[1752312726698,3.47,162.39,162.38,9.5762]
[1752312737204,0.04559985,162.4,162.38,6.1562]
[1752312737403,3.32,162.39,162.38,6.1562]
[1752312737702,0.04559985,162.4,162.39,6.1559]
[1752312737904,0.04559985,162.4,162.39,14.71446345]
[1752312739006,3.36559985,162.4,162.39,14.71446345]
[1752312739710,0.04559985,162.4,162.39,14.71446345]
[1752312740208,3.36559985,162.4,162.39,17.04995306]
[1752312740810,3.36559985,162.4,162.39,16.20839849]
[1752312742010,0.04559985,162.4,162.39,16.20839849]
[1752312743009,0.04559985,162.4,162.39,11.02983504]
[1752312748016,3.36559985,162.4,162.39,11.02983504]
[1752312750816,0.04559985,162.4,162.39,11.02983504]
[1752312752317,3.36559985,162.4,162.39,11.02983504]
[1752312753223,3.36559985,162.4,162.39,7.64983504]
[1752312755609,3.36559985,162.4,162.39,12.82709679]
[1752312756114,3.36559985,162.4,162.39,7.64983504]
[1752312756921,3.36559985,162.4,162.38,9.5361]
[1752312757112,3.36559985,162.4,162.39,1.49393504]
[1752312758018,3.36559985,162.4,162.39,16.20747626]
[1752312763523,3.36559985,162.4,162.39,11.02983504]
[1752312766026,3.54,162.41,162.4,6.1555]
[1752312766228,3.54,162.41,162.4,16.20846392]
[1752312767027,3.54,162.41,162.4,14.71452888]
[1752312767224,3.54,162.41,162.4,16.20846392]
[1752312768726,3.54,162.41,162.4,6.67296392]
[1752312769221,3.54,162.41,162.4,12.82846392]
[1752312770628,3.54,162.41,162.4,16.20846392]
[1752312771528,3.54,162.41,162.4,12.82846392]
[1752312772731,3.54,162.41,162.4,16.20846392]
[1752312773331,3.54,162.41,162.4,16.21117571]
[1752312776032,3.54,162.41,162.4,12.83117571]
[1752312776332,3.54,162.41,162.4,7.64943504]
[1752312778536,3.54,162.41,162.4,11.02943504]
[1752312781743,6.1538,162.45,162.42,6.1547]
[1752312781933,1.49329152,162.49,162.44,1.49329152]
[1752312782139,6.1524,162.49,162.46,1.49304399]
[1752312782338,0.04585443,162.48,162.46,1.49304399]
[1752312782537,0.04585443,162.48,162.46,1.5369881]
[1752312782739,0.04585443,162.48,162.47,4.87304399]
[1752312782941,0.04585443,162.48,162.47,16.21256022]
[1752312783142,0.04585443,162.48,162.47,11.02584399]
[1752312784442,3.58585443,162.48,162.47,11.02584399]
[1752312785448,0.04585443,162.48,162.47,11.02584399]
[1752312786741,0.04585443,162.48,162.47,16.21256022]
[1752312787146,3.58585443,162.48,162.47,11.02584399]
[1752312787537,0.04585443,162.48,162.47,11.02584399]
[1752312792344,3.58585443,162.48,162.47,11.02584399]
[1752312796047,3.58585443,162.48,162.47,1.49304399]
[1752312798546,0.04585443,162.48,162.47,5.11304399]
[1752312798742,3.49585443,162.48,162.47,11.26584399]
[1752312802150,3.49585443,162.48,162.47,5.11304399]
[1752312802549,3.49585443,162.48,162.47,1.49304399]
[1752312802746,3.49585443,162.48,162.47,5.11304399]
[1752312805252,3.49585443,162.48,162.47,1.49304399]
[1752312805951,3.49585443,162.48,162.47,5.11304399]
[1752312806147,3.49585443,162.48,162.47,11.26584399]
[1752312809752,0.04585443,162.48,162.47,11.26584399]
[1752312810954,3.49585443,162.48,162.47,5.11304399]
[1752312811350,3.49585443,162.48,162.47,11.26584399]
[1752312811648,3.49585443,162.48,162.47,9.7728]
[1752312811951,3.49585443,162.48,162.47,11.26584399]
[1752312812452,3.49585443,162.48,162.47,5.11304399]
[1752312813153,3.49585443,162.48,162.47,11.26584399]
[1752312814054,3.49585443,162.48,162.47,5.11304399]
[1752312814754,3.49585443,162.48,162.47,11.26584399]
[1752312824158,3.49585443,162.48,162.47,5.11304399]
[1752312824651,3.49585443,162.48,162.47,11.26584399]
[1752312824854,3.49585443,162.48,162.47,7.64584399]
[1752312825061,3.49585443,162.48,162.47,1.49304399]
[1752312825261,4.98889842,162.48,162.46,0.04394411]
[1752312825561,3.34,162.47,162.46,0.04394411]
[1752312827863,10.98584399,162.47,162.46,0.04394411]
[1752312832167,9.4928,162.47,162.46,0.04394411]
[1752312841877,9.4928,162.47,162.46,3.63394411]
[1752312842576,3.34,162.47,162.46,9.78714411]
[1752312842978,3.38585443,162.48,162.47,3.59]
[1752312843170,0.04585443,162.48,162.47,11.23584399]
[1752312843374,3.38585443,162.48,162.47,11.23584399]
[1752312843674,0.04585443,162.48,162.47,11.23584399]
[1752312848272,182.56170021,162.57,162.52,6.1507]
[1752312848483,6.1496,162.56,162.53,5.08304399]
[1752312848980,3.34,162.55,162.53,5.08304399]
[1752312850085,3.34,162.55,162.53,11.23344399]
[1752312850772,3.34,162.55,162.54,3.59]
[1752312852181,3.34,162.55,162.54,9.7402]
[1752312855279,3.34,162.55,162.54,3.59]
[1752312856583,3.34,162.55,162.54,9.7402]
[1752312856778,0.04401339,162.56,162.55,3.48]
[1752312856779,3.54401339,162.56,162.55,3.48]
[1752312856983,3.54401339,162.56,162.55,4.97304399]
[1752312858779,3.54401339,162.56,162.55,11.12284399]
[1752312859185,0.04401339,162.56,162.55,11.12284399]
[1752312861186,1.49304399,162.63,162.59,3.48]
[1752312861391,3.5,162.62,162.59,4.97304399]
[1752312861590,4.99304399,162.62,162.59,3.48]
[1752312861790,1.49304399,162.62,162.59,3.48]
[1752312862092,3.5,162.6,162.59,3.48]
[1752312863194,176.26,162.65,162.59,3.48]
[1752312863398,176.26,162.65,162.59,2.32912571]
[1752312863594,3.5,162.64,162.6,3.48]
[1752312863889,178.58912571,162.65,162.59,2.32912571]
[1752312863890,6.1472,162.62,162.61,3.48]
[1752312864092,9.6472,162.62,162.61,3.48]
[1752312864794,3.5,162.62,162.61,3.48]
[1752312865292,9.6472,162.62,162.61,3.48]
[1752312866189,3.5,162.62,162.61,3.48]
[1752312868994,3.5,162.61,162.6,0.03950295]
[1752312869295,3.5,162.61,162.6,3.51950295]
[1752312871207,9.6475,162.61,162.6,3.51950295]
[1752312871501,9.6475,162.61,162.6,0.03950295]
[1752312871707,176.2,162.61,162.56,3.48]
[1752312871907,3.5,162.57,162.56,3.48]
[1752312872704,3.5,162.57,162.56,9.6294]
[1752312873209,3.5,162.58,162.57,3.48]
[1752312874007,6.1481,162.6,162.57,9.629]
[1752312874309,3.5,162.59,162.58,3.48]
[1752312874506,3.5,162.59,162.58,9.6287]
[1752312875508,179.7,162.61,162.59,6.1483]
[1752312875709,179.7,162.61,162.6,3.48]
[1752312876111,9.6473,162.62,162.6,3.48]
[1752312876312,3.5,162.61,162.6,3.48]
[1752312876510,9.6475,162.61,162.6,3.48]
[1752312876803,6.1475,162.61,162.59,3.51925415]
[1752312877108,3.5,162.6,162.59,3.51925415]
[1752312878512,3.5,162.6,162.59,0.03925415]
[1752312878708,3.5,162.6,162.59,3.51925415]
[1752312882917,9.6479,162.6,162.59,0.03925415]
[1752312883117,3.5,162.6,162.54,3.48]
[1752312883511,3.5,162.58,162.56,9.6293]
[1752312883707,3.5,162.58,162.51,3.48]
[1752312883911,8.47982571,162.53,162.45,2.32912571]
[1752312884209,3.5,162.51,162.5,3.48]
[1752312884406,3.5,162.52,162.5,3.48]
[1752312885018,3.5,162.52,162.51,3.51]
[1752312886116,3.5,162.52,162.51,9.6613]
[1752312887116,3.56,162.54,162.53,3.51]
[1752312887821,3.56,162.55,162.54,3.51]
[1752312888315,3.56,162.55,162.54,9.6602]
[1752312888516,3.56,162.55,162.54,3.51]
[1752312890121,3.56,162.55,162.54,9.6602]
[1752312894917,3.56,162.55,162.53,2.37003583]
[1752312894918,3.56,162.57,162.55,6.1495]
[1752312895222,3.56,162.57,162.56,3.51]
[1752312897924,3.56,162.62,162.56,3.51]
[1752312898119,3.56,162.62,162.58,3.51]
[1752312898517,3.56,162.62,162.58,3.55093177]
[1752312899126,6.1476,162.61,162.58,9.69923177]
[1752312899424,3.56,162.6,162.59,3.51]
[1752312901228,3.56,162.6,162.59,9.6583]
[1752312904124,6.1469,162.63,162.59,11.98742571]
[1752312904330,3.56,162.62,162.6,3.51]
[1752312904530,3.56,162.62,162.59,8.47742571]
[1752312904828,3.56,162.61,162.6,3.51]
[1752312905429,3.56,162.61,162.6,9.6579]
[1752312908228,3.56,162.64,162.62,3.51]
[1752312908432,3.56,162.64,162.62,5.83912571]
[1752312908630,3.56,162.64,162.63,3.51]
[1752312909323,3.56,162.69,162.63,3.51]
[1752312909523,3.56,162.69,162.64,3.51]
[1752312909726,3.56,162.65,162.6,3.51]
[1752312909928,3.56,162.61,162.57,2.328667]
[1752312910130,3.56,162.61,162.58,3.51]
[1752312910327,6.1479,162.6,162.58,3.51]
[1752312910532,3.56,162.59,162.58,3.51]
[1752312915435,9.7083,162.59,162.58,3.51]
[1752312917139,3.56,162.59,162.58,3.51]
[1752312921444,3.5,162.65,162.58,3.44]
[1752312922038,6.147,162.63,162.59,6.1481]
[1752312922245,3.5,162.62,162.6,3.44]
[1752312922438,3.5,162.62,162.59,6.1481]
[1752312922644,3.5,162.62,162.61,3.44]
[1752312923149,9.6472,162.62,162.61,3.44]
[1752312923647,3.5,162.62,162.61,3.44]
[1752312924146,3.5,162.62,162.59,0.03896407]
[1752312924346,6.1476,162.61,162.59,3.47896407]
[1752312924641,3.5,162.6,162.59,0.03896407]
[1752312925549,3.5,162.6,162.59,3.47896407]
[1752312926149,3.5,162.6,162.59,9.62726407]
[1752312926852,3.5,162.65,162.6,9.5879]
[1752312927153,5.828667,162.65,162.61,3.44]
[1752312927450,3.5,162.62,162.61,3.44]
[1752312927643,3.5,162.62,162.61,9.5875]
[1752312928041,3.5,162.68,162.61,2.328667]
[1752312928247,3.5,162.68,162.63,3.44]
[1752312928854,6.1463,162.65,162.64,0.04383788]
[1752312929044,6.1463,162.65,162.64,3.48383788]
[1752312929445,9.6463,162.65,162.64,3.48383788]
[1752312935549,9.6463,162.65,162.64,0.04383788]
[1752312935848,3.5,162.6,162.59,3.44]
[1752312936650,9.6479,162.6,162.57,3.44]
[1752312936851,3.5,162.59,162.58,3.44]
[1752312937053,3.5,162.59,162.58,9.5887]
[1752312938948,3.5,162.59,162.58,3.44]
[1752312940151,3.5,162.59,162.58,9.5887]
[1752312940455,3.5,162.59,162.58,3.44]
[1752312941647,3.5,162.59,162.58,9.5886]
[1752312942148,3.5,162.58,162.56,9.5893]
[1752312943154,3.5,162.57,162.56,6.1493]
[1752312943654,3.5,162.57,162.56,9.5893]
[1752312947960,3.5,162.57,162.56,3.44]
[1752312948563,6.149,162.57,162.56,3.44]
[1752312948760,3.38,162.57,162.56,3.44]
[1752312949458,9.529,162.57,162.56,3.44]
[1752312949758,3.38,162.57,162.54,9.54]
[1752312950263,3.38,162.57,162.51,2.328667]
[1752312950264,3.38,162.55,162.51,5.13828826]
[1752312950464,3.38,162.55,162.52,3.39]
[1752312951668,3.38,162.55,162.53,6.1505]
[1752312951859,3.38,162.55,162.54,3.39]
[1752312952765,3.38,162.55,162.54,9.5402]
[1752312954269,3.38,162.56,162.55,3.39]
[1752312954565,3.38,162.56,162.55,9.5398]
[1752312954968,3.38,162.56,162.53,3.39]
[1752312955369,3.38,162.55,162.53,9.5404]
[1752312955668,3.38,162.55,162.53,3.39]
[1752312956362,3.38,162.55,162.52,3.39]
[1752312956772,3.38,162.57,162.5,3.39]
[1752312957071,3.38,162.55,162.53,6.1502]
[1752312957264,3.38,162.55,162.53,9.5402]
[1752312958171,3.38,162.55,162.54,3.39]
[1752312959573,3.38,162.55,162.54,9.5402]
[1752312959971,3.38,162.55,162.54,3.39]
[1752312960472,3.38,162.55,162.54,9.5402]
[1752312961671,3.38,162.54,162.49,5.13828826]
[1752312961873,3.38,162.53,162.46,7.46695526]
[1752312962169,2.328667,162.52,162.47,3.39]
[1752312962469,3.38,162.51,162.46,3.39]
[1752312962971,3.38,162.51,162.47,2.328667]
[1752312963170,3.38,162.52,162.5,6.1514]
[1752312963472,3.38,162.51,162.5,6.1514]
[1752312963867,3.38,162.51,162.5,9.5414]
[1752312964773,3.38,162.53,162.52,9.5408]
[1752312965366,3.38,162.56,162.52,3.39]
[1752312965566,3.38,162.55,162.52,3.39]
[1752312966974,3.42127421,162.55,162.52,3.39]
[1752312967275,3.42127421,162.55,162.54,9.5399]
[1752312968972,3.42127421,162.55,162.54,6.1499]
[1752312969178,3.42127421,162.55,162.53,6.1504]
[1752312969974,3.42127421,162.55,162.54,6.1501]
[1752312971773,0.04127421,162.55,162.54,9.5401]
[1752312982277,3.33,162.59,162.57,3.39]
[1752312982476,3.33,162.6,162.57,3.39]
[1752312983084,3.33,162.59,162.58,9.5383]
[1752312989579,3.33,162.59,162.58,3.39]
[1752312989779,3.33,162.59,162.57,3.43002138]
[1752312990784,3.33,162.58,162.57,0.04002138]
[1752312991679,3.33,162.58,162.57,9.57902138]
[1752312993483,177.42,162.61,162.57,3.43002138]
[1752312993684,3.33,162.64,162.6,2.328667]
[1752312993885,3.33,162.64,162.61,3.39]
[1752312994080,3.33,162.62,162.61,3.39]
[1752312994279,3.33,162.62,162.61,3.43636242]
[1752312994785,3.33,162.62,162.61,9.58386242]
[1752312996384,537.5861,162.65,162.61,3.43636242]
[1752312996583,3.33,162.63,162.62,3.39]
[1752313000688,3.33,162.62,162.61,9.58356242]
[1752313000989,3.33,162.62,162.61,3.43636242]
[1752313002288,3.33,162.62,162.61,0.04636242]
[1752313002984,3.33,162.62,162.61,3.43636242]
[1752313004586,9.4771,162.62,162.61,3.43636242]
[1752313008090,9.4771,162.62,162.61,0.04636242]
[1752313016298,9.4771,162.62,162.61,3.44636242]
[1752313016299,3.33,162.62,162.61,3.44636242]
[1752313016493,9.6368,162.63,162.61,3.44636242]
[1752313017192,3.49,162.63,162.62,6.1471]
[1752313017394,3.49,162.66,162.63,3.4]
[1752313017595,3.49,162.65,162.63,3.4]
[1752313017796,3.49,162.65,162.63,8.475167]
[1752313018095,3.49,162.65,162.64,3.4]
[1752313018995,9.636,162.65,162.64,3.4]
[1752313021197,3.49,162.65,162.64,3.4]
[1752313021399,3.49,162.67,162.64,3.4]
[1752313021596,3.49,162.67,162.65,2.328667]
[1752313021794,101.40285564,162.68,162.66,3.4]
[1752313022005,3.49,162.68,162.66,3.4]
[1752313022202,3.49,162.67,162.65,8.51461004]
[1752313022405,3.49,162.67,162.65,2.36871004]
[1752313022800,3.49,162.67,162.66,3.4]
[1752313024506,3.49,162.68,162.67,3.4]
[1752313025206,9.6346,162.69,162.67,6.1452]
[1752313025409,9.6346,162.69,162.68,3.4]
[1752313026310,3.49,162.69,162.68,3.4]
[1752313026510,177.12,162.7,162.68,3.4]
[1752313026911,180.61,162.7,162.68,3.4]
[1752313027114,3.49,162.7,162.68,9.5447]
[1752313027313,3.49,162.7,162.69,3.4]
[1752313030921,3.49,162.7,162.69,9.5445]
[1752313031106,3.49,162.7,162.69,3.4]
[1752313031311,9.6335,162.72,162.69,9.5441]
[1752313031512,3.49,162.71,162.7,3.4]
[1752313031713,177.08,162.73,162.7,3.4]
[1752313031912,3.49,162.71,162.7,3.4]
[1752313032513,3.49,162.73,162.7,3.4]
[1752313032717,3.49,162.72,162.7,3.4]
[1752313032913,3.49,162.7,162.69,0.04471873]
[1752313033713,3.49,162.7,162.69,3.44471873]
[1752313035022,9.6341,162.7,162.69,0.04471873]
[1752313037319,6.1449,162.68,162.65,3.41]
[1752313037517,3.36,162.67,162.65,3.41]
[1752313039022,3.36,162.67,162.65,9.5559]
[1752313039214,3.36,162.67,162.65,3.41]
[1752313039419,3.36,162.66,162.65,3.41]
[1752313040620,3.36,162.66,162.65,9.556]
[1752313040917,3.36,162.66,162.61,3.41]
[1752313041225,3.36,162.66,162.64,3.41]
[1752313041515,6.1458,162.66,162.64,3.41]
[1752313041715,3.36,162.65,162.64,3.41]
[1752313042522,3.36,162.65,162.62,3.41]
[1752313043321,3.36,162.67,162.62,3.41]
[1752313043522,3.36,162.66,162.62,3.41]
[1752313044221,3.36,162.66,162.64,6.1461]
[1752313044522,3.36,162.66,162.65,3.41]
[1752313046129,3.36,162.66,162.65,9.556]
[1752313046720,3.36,162.66,162.65,3.41]
[1752313048125,3.36,162.66,162.65,9.556]
[1752313048519,3.36,162.67,162.65,9.556]
[1752313048720,3.36,162.67,162.66,3.41]
[1752313048915,9.5052,162.67,162.66,3.41]
[1752313050824,3.36,162.67,162.66,3.41]
[1752313053225,9.5052,162.67,162.66,3.41]
[1752313056626,3.36,162.67,162.66,3.41]
[1752313057934,3.36,162.67,162.66,9.5556]
[1752313058133,3.36,162.72,162.63,2.328667]
[1752313058429,6.1443,162.7,162.67,9.555]
[1752313058630,3.36,162.69,162.68,3.41]
[1752313059032,3.36,162.69,162.68,9.5549]
[1752313059736,3.36,162.7,162.69,6.1444]
[1752313060428,9.5041,162.7,162.69,3.41]
[1752313061637,3.36,162.69,162.68,9.5547]
[1752313063733,3.36,162.69,162.65,3.41]
[1752313063934,6.1451,162.68,162.65,3.41]
[1752313064237,3.36,162.67,162.65,9.5558]
[1752313064436,3.36,162.67,162.66,3.41]
[1752313064639,9.5052,162.67,162.65,3.28]
[1752313064838,3.36,162.66,162.65,3.28]
[1752313065239,9.5056,162.66,162.63,9.4266]
[1752313065451,9.5056,162.66,162.61,5.13876497]
[1752313065452,3.36,162.65,162.64,3.28]
[1752313067044,3.36,162.65,162.64,9.4263]
[1752313067443,3.36,162.65,162.64,3.28]
[1752313068040,3.36,162.65,162.61,2.328667]
[1752313068246,3.36,162.65,162.61,3.28]
[1752313068748,3.36,162.63,162.61,9.4272]
[1752313069344,3.36,162.63,162.62,9.4271]
[1752313069843,2.328667,162.68,162.62,3.28]
[1752313070149,9.5054,162.67,162.64,6.1461]
[1752313070353,3.36,162.66,162.65,3.28]
[1752313071053,3.36,162.66,162.64,9.4261]
[1752313071653,3.36,162.65,162.62,3.28]
[1752313072051,3.36,162.64,162.62,9.4269]
[1752313073158,6.1464,162.64,162.61,9.4274]
[1752313073357,3.36,162.63,162.61,9.4274]
[1752313073956,3.36,162.63,162.62,9.4271]
[1752313076550,3.36,162.63,162.62,3.28]
[1752313076962,3.36,162.63,162.61,6.1474]
[1752313077158,9.5071,162.62,162.6,6.19204307]
[1752313077363,3.36,162.61,162.6,9.47204307]
[1752313078263,3.36,162.63,162.62,9.4268]
[1752313080672,3.40293757,162.64,162.63,9.4267]
[1752313083067,0.04293757,162.64,162.63,9.4267]
[1752313084368,7.48932344,162.72,162.65,3.28]
[1752313084562,3.36,162.67,162.65,3.28]
[1752313085267,3.36,162.67,162.66,9.4254]
[1752313085963,3.36,162.69,162.66,3.28]
[1752313086269,6.1442,162.7,162.66,3.28]
[1752313086563,3.36,162.68,162.67,6.1449]
[1752313086762,3.36,162.68,162.67,9.4249]
[1752313087664,3.36,162.69,162.68,3.28]
[1752313088069,3.36,162.69,162.68,9.4249]
[1752313088568,6.1439,162.71,162.7,6.1441]
[1752313088569,3.36,162.71,162.7,6.1441]
[1752313088766,3.36,162.71,162.7,9.4241]
[1752313093268,3.40539269,162.72,162.71,3.28]
[1752313094475,0.04539269,162.72,162.71,9.4237]
[1752313094675,3.40539269,162.72,162.71,9.4237]
[1752313094877,3.40539269,162.72,162.71,3.28]
[1752313095176,3.59539269,162.72,162.71,9.5637]
[1752313096070,0.04539269,162.72,162.71,9.5637]
[1752313097372,3.59539269,162.72,162.71,9.5637]
[1752313101879,0.04539269,162.72,162.71,9.5637]
[1752313102281,3.59539269,162.72,162.71,9.5637]
[1752313102673,3.59539269,162.72,162.71,3.42]
[1752313102879,3.59539269,162.72,162.7,5.74715654]
[1752313103080,3.59539269,162.72,162.71,3.42]
[1752313103482,3.59539269,162.72,162.71,9.5637]
[1752313103781,0.04539269,162.72,162.71,9.5637]
[1752313110582,0.04539269,162.72,162.71,11.89085654]
[1752313112178,0.04539269,162.72,162.71,9.5637]
[1752313112380,3.55,162.75,162.74,6.1426]
[1752313112573,3.55,162.75,162.74,9.5626]
[1752313113579,6.141,162.79,162.75,3.42]
[1752313113787,177.4,162.81,162.75,5.74715654]
[1752313113976,177.4,162.81,162.76,3.42]
[1752313113977,3.55,162.8,162.76,3.42]
[1752313114183,3.55,162.8,162.76,3.4671008]
[1752313114581,6.1409,162.79,162.77,9.5614]
[1752313114780,3.55,162.78,162.77,9.5614]
[1752313115284,3.55,162.78,162.77,6.1414]
[1752313115481,3.55,162.78,162.77,9.5614]
[1752313116287,3.55,162.78,162.76,9.6088008]
[1752313116883,3.55,162.78,162.77,6.1415]
[1752313117392,3.55,162.78,162.77,9.5615]
[1752313118278,3.55,162.79,162.78,9.5607]
[1752313118484,3.55,162.8,162.79,3.42]
[1752313119589,3.55,162.8,162.79,9.5607]
[1752313121688,3.55,162.8,162.79,3.42]
[1752313122488,3.55,162.8,162.78,11.88815654]
[1752313122995,9.6904,162.8,162.78,5.74715654]
[1752313123293,3.55,162.79,162.78,5.74715654]
[1752313124391,3.55,162.8,162.79,3.42]
[1752313124593,3.55,162.82,162.79,3.42]
[1752313124795,2.32715654,162.88,162.82,3.3]
[1752313124796,6.139,162.84,162.82,3.3]
[1752313125090,177.36,162.85,162.82,3.3]
[1752313125494,3.41,162.84,162.82,3.3]
[1752313125686,3.41,162.83,162.81,3.3437311]
[1752313125888,3.41,162.83,162.81,0.0437311]
[1752313126396,9.5496,162.82,162.81,0.0437311]
[1752313128087,3.41,162.82,162.81,0.0437311]
[1752313128287,3.41,162.82,162.81,3.3437311]
[1752313129798,9.5496,162.82,162.81,3.3437311]
[1752313130196,3.41,162.82,162.81,0.0437311]
[1752313132704,3.41,162.82,162.81,3.3437311]
[1752313133298,3.41,162.82,162.81,0.0437311]
[1752313133602,3.41,162.82,162.81,6.1837311]
[1752313133801,3.41,162.82,162.81,9.4837311]
[1752313134791,3.41,162.82,162.81,3.3437311]
[1752313135501,3.41,162.82,162.81,9.4837311]
[1752313136200,3.41,162.82,162.81,3.3437311]
[1752313137202,3.41,162.82,162.81,9.4837311]
[1752313137597,177.42,162.83,162.81,0.0437311]
[1752313137806,177.42,162.83,162.82,3.3]
[1752313137998,180.83,162.83,162.82,3.3]
[1752313138198,180.83,162.83,162.82,9.4396]
[1752313139299,177.42,162.83,162.81,6.1835311]
[1752313139506,3.41,162.82,162.81,9.4835311]
[1752313140003,3.41,162.82,162.81,3.3437311]
[1752313140200,3.41,162.82,162.81,0.0437311]
[1752313140902,9.5496,162.82,162.81,0.0437311]
[1752313141305,3.41,162.82,162.81,0.0437311]
[1752313142201,3.41,162.82,162.81,6.1837311]
[1752313142408,3.41,162.82,162.81,3.3437311]
[1752313143607,3.41,162.82,162.81,9.4837311]
[1752313145405,3.41,162.82,162.81,0.0437311]
[1752313145605,3.41,162.82,162.81,3.3437311]
[1752313146312,3.41,162.82,162.81,9.4837311]
[1752313147320,177.22,162.84,162.83,6.1392]
[1752313147915,180.63,162.84,162.83,6.1392]
[1752313149021,3.41,162.83,162.82,9.4394]
[1752313154823,3.41,162.83,162.82,10.92577187]
[1752313156417,3.41,162.83,162.82,3.3]
[1752313156616,3.41,162.83,162.81,7.66990297]
[1752313157216,3.41,162.83,162.81,11.03990297]
[1752313157923,3.41,162.83,162.81,9.5535311]
[1752313158918,3.31,162.82,162.81,0.0437311]
[1752313159722,7.62597187,162.82,162.81,0.0437311]
[1752313160019,10.93597187,162.82,162.81,0.0437311]